[Event "SRB-chW Semifinal 2021"]
[Site "Paracin"]
[Date "2021.03.16"]
[Round "1.13"]
[White "Chelushkina, Irina"]
[Black "Djordjevic, Nevena"]
[Result "1-0"]
[ECO "B40"]
[WhiteElo "2203"]
[BlackElo "1999"]
[Annotator "NA"]
[PlyCount "67"]
[EventDate "2021.03.16"]
[EventType "swiss"]
[EventCountry "SRB"]
[SourceTitle "playchess.com"]
[Source "ChessBase"]
[SourceQuality "1"]
[TimeControl "40/5400+30:1800+30"]

1. e4 c5 2. Nf3 e6 3. d3 Nc6 4. c3 d5 5. Nbd2 Nf6 6. Be2 Be7 7. O-O O-O 8. Re1 d4 9. Nf1 h6 10. Ng3 b5 11. a4 Qb6 12. axb5 Qxb5 13. e5 Nd7 14. Bf1 Rb8 $14 (14... Rd8 $11) 15. Nh5 Rd8 16. Qd2 Bf8 17. Qf4 g6 18. Qg3 Ne7 19. Rxa7 Nf5 20. Qg4 Bb7 21. Nd2 Kh8 22. Ng3 Bg7 23. Nc4 Bd5 24. Nxf5 exf5 25. Qh4 Kh7 26. Bg5 Rh8 27. Bf4 Be6 28. Nd6 Qc6 29. cxd4 cxd4 30. Rc1 Qd5 31. Rcc7 Rxb2 32. Nxf7 Bxf7 33. Rxd7 Qe6 34. Rxf7 1-0

[Event "SRB-chW Semifinal 2021"]
[Site "Paracin"]
[Date "2021.03.16"]
[Round "1.14"]
[White "Gogic, Anastasija"]
[Black "Drljevic, Ljilja"]
[Result "0-1"]
[ECO "B06"]
[WhiteElo "1868"]
[BlackElo "2200"]
[Annotator "NA"]
[PlyCount "69"]
[EventDate "2021.03.16"]
[EventType "swiss"]
[EventCountry "SRB"]
[SourceTitle "playchess.com"]
[Source "ChessBase"]
[SourceQuality "1"]
[TimeControl "40/5400+30:1800+30"]

1. e4 {[%emt 0:00:00]} g6 {[%emt 0:00:00]} 2. d4 {[%emt 0:00:00]} Bg7 {[%emt 0:00:00]} 3. Nc3 {[%emt 0:00:24]} d6 {[%emt 0:00:00]} 4. Be3 {[%emt 0:00:37]} a6 {[%emt 0:00:01]} 5. h4 {[%emt 0:01:15]} h6 {[%emt 0:00:10]} 6. Qd2 {[%emt 0:00:33]} Nd7 {[%emt 0:02:03]} 7. O-O-O {[%emt 0:11:46]} b5 {[%emt 0:03:14]} 8. Nge2 {[%emt 0:08:31]} Bb7 {[%emt 0:05:05]} 9. f3 {[%emt 0:03:31]} Rc8 {[%emt 0:03:35]} 10. Kb1 {[%emt 0:11:24]} c5 $16 {[%emt 0:01:56]} 11. dxc5 {[%emt 0:09:30]} Nxc5 {[%emt 0:03:53]} 12. Bd4 {[%emt 0:07:22]} Nf6 {[%emt 0:00:25]} 13. Nd5 {[%emt 0:01:00]} Bxd5 {[%emt 0:14:17]} 14. exd5 {[%emt 0:01:30]} Ncd7 {[%emt 0:07:13]} 15. h5 {[%emt 0:08:27]} g5 {[%emt 0:01:53]} 16. Ng3 {[%emt 0:00:24]} Qc7 {[%emt 0:01:24]} 17. Nf5 {[%emt 0:05:58]} Bf8 {[%emt 0:00:03]} 18. Re1 {[%emt 0:01:54]} Ne5 {[%emt 0:02:22]} 19. Bxe5 {[%emt 0:09:26]} dxe5 {[%emt 0:00:03]} 20. a4 {[%emt 0:03:01]} bxa4 {[%emt 0:09:32]} 21. Bxa6 {[%emt 0:00:14]} Rb8 {[%emt 0:00:23]} 22. Re3 {[%emt 0:02:49]} Qb6 {[%emt 0:00:59]} 23. Bb5+ {[%emt 0:05:01]} Qxb5 {[%emt 0:00:23]} 24. c4 {[%emt 0:00:08]} Qc5 {[%emt 0:07:16]} 25. Rxe5 {[%emt 0:02:13]} a3 {[%emt 0:05:37]} 26. Qe3 {[%emt 0:00:55]} Rxb2+ {[%emt 0:02:32]} 27. Ka1 {[%emt 0:00:04]} Qb4 {[%emt 0:01:30]} 28. Qd4 {[%emt 0:02:17]} Qb3 {[%emt 0:05:35]} 29. Nd6+ {[%emt 0:00:34]} Kd7 {[%emt 0:02:42]} 30. Qa7+ {[%emt 0:01:06]} Kxd6 {[%emt 0:00:33]} 31. c5+ {[%emt 0:00:49]} Kxe5 {[%emt 0:00:03]} 32. Re1+ {[%emt 0:00:10]} Kxd5 {[%emt 0:04:28]} 33. Qa8+ {[%emt 0:00:56]} Kd4 {[%emt 0:00:41]} 34. Qd8+ {[%emt 0:00:35]} Nd5 {[%emt 0:00:17]} 35. Re4+ {[%emt 0:00:32]} 0-1

[Event "SRB-chW Semifinal 2021"]
[Site "Paracin"]
[Date "2021.03.17"]
[Round "2.12"]
[White "Drljevic, Ljilja"]
[Black "Juric, Iskra"]
[Result "1-0"]
[ECO "A00"]
[WhiteElo "2200"]
[BlackElo "1713"]
[Annotator "NA"]
[PlyCount "55"]
[EventDate "2021.03.16"]
[EventType "swiss"]
[EventCountry "SRB"]
[SourceTitle "playchess.com"]
[Source "ChessBase"]
[SourceQuality "1"]
[TimeControl "40/5400+30:1800+30"]

1. b4 {[%emt 0:03:59]} Nf6 {[%emt 0:00:25]} 2. Bb2 {[%emt 0:00:03]} g6 {[%emt 0:02:35]} 3. Nf3 {[%emt 0:05:48]} Bg7 {[%emt 0:02:53]} 4. e3 {[%emt 0:00:43]} O-O {[%emt 0:01:53]} 5. Be2 {[%emt 0:00:37]} d5 {[%emt 0:03:40]} 6. O-O {[%emt 0:00:39]} c6 {[%emt 0:01:57]} 7. c4 {[%emt 0:02:23]} Bg4 {[%emt 0:04:54]} 8. h3 {[%emt 0:01:59]} Bxf3 {[%emt 0:02:48]} 9. Bxf3 {[%emt 0:00:02]} dxc4 {[%emt 0:02:41]} 10. Na3 {[%emt 0:01:09]} Nd5 {[%emt 0:14:30]} 11. Bxg7 {[%emt 0:04:04]} Kxg7 {[%emt 0:00:12]} 12. Nxc4 {[%emt 0:01:41]} b5 {[%emt 0:02:26]} 13. Bxd5 {[%emt 0:12:12]} Qxd5 {[%emt 0:07:30]} 14. Na5 {[%emt 0:01:06]} Na6 {[%emt 0:02:59]} 15. Qc2 {[%emt 0:01:37]} Rac8 {[%emt 0:03:07]} 16. Qb2+ {[%emt 0:04:24]} Kg8 {[%emt 0:01:07]} 17. d4 {[%emt 0:00:47]} f5 {[%emt 0:07:57]} 18. Rfe1 {[%emt 0:08:32]} Rc7 {[%emt 0:09:22]} 19. Rac1 {[%emt 0:01:39]} Qd6 {[%emt 0:02:50]} 20. a3 {[%emt 0:02:41]} Nb8 {[%emt 0:01:20]} 21. Rc2 {[%emt 0:01:10]} g5 {[%emt 0:03:39]} 22. Rec1 {[%emt 0:01:22]} Qg6 {[%emt 0:00:36]} 23. d5 {[%emt 0:03:27]} Rf6 {[%emt 0:00:53]} 24. Qe5 {[%emt 0:01:28]} Rd6 {[%emt 0:03:43]} 25. dxc6 {[%emt 0:02:57]} a6 {[%emt 0:02:56]} 26. Rc5 {[%emt 0:00:34]} Nxc6 {[%emt 0:03:10]} 27. Nxc6 {[%emt 0:06:33]} Rdxc6 {[%emt 0:01:11]} 28. Qd5+ {[%emt 0:00:17]} 1-0

[Event "SRB-chW Semifinal 2021"]
[Site "Paracin"]
[Date "2021.03.17"]
[Round "2.14"]
[White "Vujcic, Milena"]
[Black "Ostojic, Katarina"]
[Result "1-0"]
[ECO "B94"]
[WhiteElo "2069"]
[BlackElo "2013"]
[Annotator "NA"]
[PlyCount "69"]
[EventDate "2021.03.16"]
[EventType "swiss"]
[EventCountry "SRB"]
[SourceTitle "playchess.com"]
[Source "ChessBase"]
[SourceQuality "1"]
[TimeControl "40/5400+30:1800+30"]

1. e4 {[%emt 0:00:00]} c5 {[%emt 0:00:00]} 2. Nf3 {[%emt 0:00:00]} d6 {[%emt 0:00:00]} 3. d4 {[%emt 0:00:00]} cxd4 {[%emt 0:00:00]} 4. Nxd4 {[%emt 0:00:00]} Nf6 {[%emt 0:00:00]} 5. Nc3 {[%emt 0:00:00]} a6 {[%emt 0:00:00]} 6. Bg5 {[%emt 0:00:00]} Nbd7 {[%emt 0:00:12]} 7. Qe2 {[%emt 0:00:03]} h6 {[%emt 0:00:51]} 8. Bh4 {[%emt 0:00:06]} g6 {[%emt 0:00:43]} 9. f4 {[%emt 0:00:23]} e5 {[%emt 0:01:31]} 10. fxe5 {[%emt 0:00:11]} dxe5 {[%emt 0:00:26]} 11. O-O-O {[%emt 0:03:05]} Qc7 {[%emt 0:00:39]} 12. Nb3 {[%emt 0:00:07]} Bg7 {[%emt 0:04:08]} 13. Nd5 {[%emt 0:03:05]} Nxd5 {[%emt 0:01:03]} 14. exd5 {[%emt 0:00:05]} O-O {[%emt 0:05:18]} 15. g4 {[%emt 0:04:27]} Qd6 {[%emt 0:11:56]} 16. Bg2 {[%emt 0:09:07]} a5 {[%emt 0:06:00]} 17. a3 {[%emt 0:11:30]} b6 {[%emt 0:14:35]} 18. Bg3 {[%emt 0:04:00]} Ba6 {[%emt 0:02:37]} 19. Qe1 {[%emt 0:02:14]} f5 {[%emt 0:07:50]} 20. gxf5 {[%emt 0:02:17]} gxf5 {[%emt 0:00:47]} 21. Rg1 {[%emt 0:06:20]} Rac8 {[%emt 0:05:26]} 22. Qf2 {[%emt 0:10:42]} f4 {[%emt 0:14:54]} 23. Bh4 {[%emt 0:00:18]} a4 {[%emt 0:05:20]} 24. Nd2 {[%emt 0:05:12]} Rxc2+ {[%emt 0:04:54]} 25. Kxc2 {[%emt 0:00:28]} Rc8+ {[%emt 0:00:04]} 26. Kb1 {[%emt 0:00:10]} Bd3+ {[%emt 0:00:04]} 27. Ka2 {[%emt 0:02:21]} Rc2 {[%emt 0:01:54]} 28. Be4 {[%emt 0:08:09]} Rxd2 {[%emt 0:09:50]} 29. Qxd2 {[%emt 0:00:35]} Bxe4 {[%emt 0:00:12]} 30. Qe2 {[%emt 0:06:08]} Bxd5+ {[%emt 0:00:49]} 31. Ka1 {[%emt 0:02:05]} Nc5 {[%emt 0:01:33]} 32. Qg4 {[%emt 0:03:41]} Nb3+ {[%emt 0:01:08]} 33. Kb1 {[%emt 0:00:40]} Be4+ {[%emt 0:00:45]} 34. Ka2 {[%emt 0:00:09]} Qc7 {[%emt 0:00:55]} 35. Rd7 {[%emt 0:03:16]} 1-0

[Event "SRB-chW Semifinal 2021"]
[Site "Paracin"]
[Date "2021.03.17"]
[Round "2.15"]
[White "Djordjevic, Nevena"]
[Black "Manakova, Maria"]
[Result "0-1"]
[ECO "E12"]
[WhiteElo "1999"]
[BlackElo "2271"]
[Annotator "NA"]
[PlyCount "52"]
[EventDate "2021.03.16"]
[EventType "swiss"]
[EventCountry "SRB"]
[SourceTitle "playchess.com"]
[Source "ChessBase"]
[SourceQuality "1"]
[TimeControl "40/5400+30:1800+30"]

1. d4 {[%emt 0:00:00]} Nf6 {[%emt 0:07:16]} 2. Nf3 {[%emt 0:00:00]} e6 {[%emt 0:00:31]} 3. c4 {[%emt 0:00:54]} b6 {[%emt 0:01:20]} 4. Bf4 {[%emt 0:01:25]} Bb7 {[%emt 0:00:27]} 5. e3 {[%emt 0:00:39]} Bb4+ {[%emt 0:03:38]} 6. Nc3 {[%emt 0:06:57]} O-O {[%emt 0:03:45]} 7. Qc2 {[%emt 0:04:44]} d6 {[%emt 0:01:52]} 8. Be2 {[%emt 0:05:10]} Ne4 {[%emt 0:05:52]} 9. O-O {[%emt 0:01:32]} Bxc3 {[%emt 0:00:02]} 10. bxc3 {[%emt 0:00:07]} Nd7 {[%emt 0:00:33]} 11. Rfd1 {[%emt 0:06:47]} f5 {[%emt 0:03:19]} 12. h3 {[%emt 0:12:08]} g5 {[%emt 0:06:36]} 13. Bh2 {[%emt 0:04:24]} g4 {[%emt 0:01:17]} 14. Ne1 {[%emt 0:14:38]} gxh3 {[%emt 0:11:54]} 15. g3 {[%emt 0:04:47]} Qg5 {[%emt 0:03:28]} 16. Nd3 {[%emt 0:05:46]} Qh6 {[%emt 0:11:35]} 17. Nf4 {[%emt 0:07:42]} Ng5 {[%emt 0:00:22]} 18. d5 {[%emt 0:02:45]} Ne5 {[%emt 0:00:24]} 19. a4 {[%emt 0:08:40]} Nef3+ {[%emt 0:03:04]} 20. Kh1 {[%emt 0:00:57]} e5 {[%emt 0:02:11]} 21. Ne6 {[%emt 0:03:07]} Qxe6 {[%emt 0:07:37]} 22. dxe6 {[%emt 0:05:44]} Nd4+ {[%emt 0:00:36]} 23. Kg1 {[%emt 0:00:27]} Nxc2 {[%emt 0:00:07]} 24. Ra2 {[%emt 0:00:31]} Nxe3 {[%emt 0:03:43]} 25. fxe3 {[%emt 0:00:05]} Nxe6 {[%emt 0:00:09]} 26. Bf1 {[%emt 0:01:47]} Ng5 {[%emt 0:00:18]} 0-1

[Event "SRB-chW Semifinal 2021"]
[Site "Paracin"]
[Date "2021.03.17"]
[Round "3.11"]
[White "Manakova, Maria"]
[Black "Drljevic, Ljilja"]
[Result "1-0"]
[ECO "B06"]
[WhiteElo "2271"]
[BlackElo "2200"]
[Annotator "NA"]
[PlyCount "69"]
[EventDate "2021.03.16"]
[EventType "swiss"]
[EventCountry "SRB"]
[SourceTitle "playchess.com"]
[Source "ChessBase"]
[SourceQuality "1"]
[TimeControl "40/5400+30:1800+30"]

1. e4 {[%emt 0:00:09]} g6 {[%emt 0:00:00]} 2. d4 {[%emt 0:00:12]} Bg7 {[%emt 0:00:00]} 3. Nc3 {[%emt 0:00:13]} d6 {[%emt 0:00:00]} 4. Nf3 {[%emt 0:01:27]} a6 {[%emt 0:01:06]} 5. a4 {[%emt 0:02:29]} e6 {[%emt 0:08:39]} 6. Bg5 {[%emt 0:08:23]} Ne7 {[%emt 0:00:30]} 7. Qd2 {[%emt 0:00:15]} h6 {[%emt 0:00:12]} 8. Be3 {[%emt 0:04:11]} b6 {[%emt 0:02:06]} 9. Be2 {[%emt 0:02:48]} Bb7 {[%emt 0:00:09]} 10. O-O {[%emt 0:00:33]} Nd7 {[%emt 0:01:12]} 11. Ne1 {[%emt 0:02:58]} Nf6 {[%emt 0:04:14]} 12. f3 {[%emt 0:00:34]} e5 {[%emt 0:08:23]} 13. Rd1 {[%emt 0:04:15]} exd4 {[%emt 0:06:33]} 14. Bxd4 {[%emt 0:00:15]} Qd7 {[%emt 0:13:34]} 15. Be3 {[%emt 0:07:04]} O-O-O {[%emt 0:03:40]} 16. Bc4 {[%emt 0:00:31]} d5 {[%emt 0:02:04]} 17. Qe2 {[%emt 0:01:02]} Qe6 {[%emt 0:05:00]} 18. Bxa6 {[%emt 0:02:11]} dxe4 {[%emt 0:01:01]} 19. Bc4 {[%emt 0:13:19]} Qc6 {[%emt 0:10:54]} 20. Rxd8+ {[%emt 0:08:04]} Rxd8 {[%emt 0:00:22]} 21. fxe4 {[%emt 0:00:41]} Nxe4 {[%emt 0:02:42]} 22. Nb5 {[%emt 0:00:58]} Kb8 {[%emt 0:16:17]} 23. Rxf7 {[%emt 0:00:35]} Bf6 {[%emt 0:07:45]} 24. b4 {[%emt 0:12:42]} g5 {[%emt 0:03:14]} 25. Bd3 {[%emt 0:02:21]} Qe6 {[%emt 0:01:18]} 26. Rh7 {[%emt 0:00:44]} Nd6 {[%emt 0:01:29]} 27. Nxc7 {[%emt 0:02:23]} Qe5 {[%emt 0:00:35]} 28. Bxb6 {[%emt 0:00:54]} Ne4 {[%emt 0:00:26]} 29. Nb5 {[%emt 0:00:46]} Qf5 {[%emt 0:00:32]} 30. Bxd8 {[%emt 0:04:53]} Qxh7 {[%emt 0:00:23]} 31. Qe3 {[%emt 0:00:51]} Be5 {[%emt 0:00:38]} 32. Bxe4 {[%emt 0:01:34]} Bxe4 {[%emt 0:00:21]} 33. Qa7+ {[%emt 0:00:45]} Kc8 {[%emt 0:00:02]} 34. Qxe7 {[%emt 0:00:47]} Qf5 {[%emt 0:00:46]} 35. Bc7 {[%emt 0:00:50]} 1-0

[Event "SRB-chW Semifinal 2021"]
[Site "Paracin"]
[Date "2021.03.17"]
[Round "3.12"]
[White "Chelushkina, Irina"]
[Black "Vujcic, Milena"]
[Result "1-0"]
[ECO "A00"]
[WhiteElo "2203"]
[BlackElo "2069"]
[Annotator "NA"]
[PlyCount "59"]
[EventDate "2021.03.16"]
[EventType "swiss"]
[EventCountry "SRB"]
[SourceTitle "playchess.com"]
[Source "ChessBase"]
[SourceQuality "1"]
[TimeControl "40/5400+30:1800+30"]

1. g3 {[%emt 0:00:00]} g6 {[%emt 0:00:00]} 2. Bg2 {[%emt 0:00:00]} Bg7 {[%emt 0:00:00]} 3. d4 {[%emt 0:00:00]} Nf6 {[%emt 0:00:00]} 4. e4 {[%emt 0:00:00]} d6 {[%emt 0:00:00]} 5. Nc3 {[%emt 0:00:03]} O-O {[%emt 0:00:01]} 6. h3 {[%emt 0:00:02]} e5 {[%emt 0:00:24]} 7. Nge2 {[%emt 0:01:55]} Nc6 {[%emt 0:00:11]} 8. Be3 {[%emt 0:01:23]} exd4 {[%emt 0:00:22]} 9. Nxd4 {[%emt 0:00:05]} Bd7 {[%emt 0:00:11]} 10. Nde2 {[%emt 0:05:17]} Re8 {[%emt 0:01:32]} 11. O-O {[%emt 0:00:35]} b5 {[%emt 0:00:59]} 12. a3 {[%emt 0:02:02]} a5 {[%emt 0:01:06]} 13. Nf4 {[%emt 0:02:34]} b4 {[%emt 0:04:24]} 14. axb4 {[%emt 0:01:59]} axb4 {[%emt 0:00:14]} 15. Rxa8 {[%emt 0:00:09]} Qxa8 {[%emt 0:00:03]} 16. Ncd5 {[%emt 0:00:27]} Nxd5 {[%emt 0:02:05]} 17. Nxd5 {[%emt 0:00:55]} Qb8 {[%emt 0:02:07]} 18. b3 {[%emt 0:00:10]} f5 {[%emt 0:13:34]} 19. exf5 {[%emt 0:01:25]} Bxf5 {[%emt 0:01:20]} 20. Bg5 {[%emt 0:05:39]} Rf8 {[%emt 0:06:51]} 21. Qd2 {[%emt 0:05:03]} Nd4 {[%emt 0:08:46]} 22. g4 {[%emt 0:08:02]} Be6 {[%emt 0:03:42]} 23. Nxb4 {[%emt 0:03:02]} Qb5 {[%emt 0:03:35]} 24. Re1 {[%emt 0:08:27]} Bc8 {[%emt 0:24:21]} 25. Nc6 {[%emt 0:09:15]} Nxc2 {[%emt 0:03:23]} 26. Re7 {[%emt 0:10:12]} Ba6 {[%emt 0:04:40]} 27. Rxg7+ {[%emt 0:02:04]} Kxg7 {[%emt 0:00:20]} 28. Bh6+ {[%emt 0:00:01]} Kg8 {[%emt 0:00:36]} 29. Bxf8 {[%emt 0:00:34]} Kxf8 {[%emt 0:00:03]} 30. Qxc2 {[%emt 0:00:42]} 1-0

[Event "SRB-chW Semifinal 2021"]
[Site "Paracin"]
[Date "2021.03.17"]
[Round "3.13"]
[White "Djukic, Sandra"]
[Black "Srdanovic, Jovana"]
[Result "1/2-1/2"]
[ECO "D10"]
[WhiteElo "2137"]
[BlackElo "2109"]
[Annotator "NA"]
[PlyCount "52"]
[EventDate "2021.03.16"]
[EventType "swiss"]
[EventCountry "SRB"]
[SourceTitle "playchess.com"]
[Source "ChessBase"]
[SourceQuality "1"]
[TimeControl "40/5400+30:1800+30"]

1. d4 d5 2. c4 c6 3. cxd5 cxd5 4. Bf4 Nc6 5. e3 Nf6 6. Nc3 Bf5 7. Nf3 e6 8. Bd3 Bxd3 9. Qxd3 Be7 10. h3 O-O 11. O-O Rc8 12. Rac1 a6 13. Nd2 Nd7 14. Nb3 Qb6 15. Rfd1 Rfd8 16. Qb1 Nf6 17. Na4 Qa7 18. Nac5 b6 19. Nd3 Ne4 20. Nd2 Nd6 21. Rc2 Qb7 22. Rdc1 Na5 23. Rxc8 Rxc8 24. Rxc8+ Qxc8 25. Qc1 Qxc1+ 26. Nxc1 Nac4 1/2-1/2

[Event "SRB-chW Semifinal 2021"]
[Site "Paracin"]
[Date "2021.03.17"]
[Round "3.14"]
[White "Gajcin, Marina"]
[Black "Grozdanovic, Anastasia"]
[Result "1-0"]
[ECO "B10"]
[WhiteElo "2227"]
[BlackElo "1817"]
[Annotator "NA"]
[PlyCount "49"]
[EventDate "2021.03.16"]
[EventType "swiss"]
[EventCountry "SRB"]
[SourceTitle "playchess.com"]
[Source "ChessBase"]
[SourceQuality "1"]
[TimeControl "40/5400+30:1800+30"]

1. e4 {[%emt 0:00:00]} c6 {[%emt 0:00:00]} 2. Nf3 {[%emt 0:00:39]} d5 {[%emt 0:00:00]} 3. Nc3 {[%emt 0:00:05]} dxe4 {[%emt 0:00:00]} 4. Nxe4 {[%emt 0:00:05]} Bg4 {[%emt 0:00:00]} 5. h3 {[%emt 0:01:11]} Bxf3 {[%emt 0:00:02]} 6. Qxf3 {[%emt 0:00:06]} e6 {[%emt 0:01:02]} 7. c3 {[%emt 0:00:05]} Nd7 {[%emt 0:00:09]} 8. d4 {[%emt 0:00:06]} Ngf6 {[%emt 0:00:12]} 9. Bd3 {[%emt 0:00:07]} Nxe4 {[%emt 0:04:31]} 10. Bxe4 {[%emt 0:00:06]} Be7 {[%emt 0:00:39]} 11. b3 {[%emt 0:22:20]} Nf6 {[%emt 0:08:33]} 12. Bc2 {[%emt 0:01:28]} Nd5 {[%emt 0:10:14]} 13. O-O {[%emt 0:02:38]} Bf6 {[%emt 0:02:31]} 14. Bb2 {[%emt 0:02:05]} O-O {[%emt 0:12:46]} 15. Rad1 {[%emt 0:08:27]} a5 {[%emt 0:11:58]} 16. c4 {[%emt 0:10:42]} Nb4 {[%emt 0:08:00]} 17. Bb1 {[%emt 0:02:08]} Qb6 {[%emt 0:08:06]} 18. h4 {[%emt 0:11:35]} Rad8 {[%emt 0:04:27]} 19. h5 {[%emt 0:13:56]} Bxd4 {[%emt 0:17:42]} 20. Qe4 {[%emt 0:16:11]} Bxf2+ {[%emt 0:01:20]} 21. Kh1 {[%emt 0:00:03]} g6 {[%emt 0:02:24]} 22. Qe5 {[%emt 0:00:28]} f6 {[%emt 0:00:09]} 23. Qxe6+ {[%emt 0:00:05]} Kg7 {[%emt 0:00:21]} 24. Qe7+ {[%emt 0:00:51]} Kg8 {[%emt 0:01:11]} 25. h6 {[%emt 0:00:35]} 1-0

[Event "SRB-chW Semifinal 2021"]
[Site "Paracin"]
[Date "2021.03.17"]
[Round "3.15"]
[White "Jurisic, Iskra"]
[Black "Dimitrijevic, Andjela"]
[Result "1/2-1/2"]
[ECO "D20"]
[WhiteElo "1713"]
[BlackElo "1830"]
[Annotator "NA RC"]
[PlyCount "80"]
[EventDate "2021.03.16"]
[EventType "swiss"]
[EventCountry "SRB"]
[SourceTitle "playchess.com"]
[Source "ChessBase"]
[SourceQuality "1"]
[TimeControl "40/5400+30:1800+30"]

1. d4 {[%emt 0:00:00]} d5 {[%emt 0:03:07]} 2. c4 {[%emt 0:00:00]} dxc4 {[%emt 0:00:41]} 3. Nc3 {[%emt 0:01:38]} Nf6 {[%emt 0:01:34]} 4. e3 {[%emt 0:02:22]} e5 {[%emt 0:06:36]} 5. Nf3 {[%emt 0:16:38]} exd4 {[%emt 0:08:15]} 6. Qxd4 {[%emt 0:01:47]} Qxd4 {[%emt 0:14:57]} 7. exd4 {[%emt 0:05:49]} Bd6 {[%emt 0:10:55]} 8. Bxc4 {[%emt 0:02:59]} O-O {[%emt 0:02:36]} 9. O-O {[%emt 0:01:33]} a6 {[%emt 0:02:51]} 10. h3 {[%emt 0:03:26]} h6 {[%emt 0:06:31]} 11. Be3 {[%emt 0:02:34]} Nc6 {[%emt 0:01:10]} 12. a3 {[%emt 0:08:33]} Bf5 {[%emt 0:02:49]} 13. Nd2 {[%emt 0:07:27]} Rfe8 {[%emt 0:04:44]} 14. Be2 {[%emt 0:05:15]} Rad8 {[%emt 0:02:10]} 15. Kh1 {[%emt 0:08:53]} Bf8 {[%emt 0:16:55]} 16. Nb3 {[%emt 0:02:56]} Ne4 {[%emt 0:00:59]} 17. Nxe4 {[%emt 0:00:47]} Bxe4 {[%emt 0:00:08]} 18. Rac1 {[%emt 0:03:29]} Bd5 {[%emt 0:02:06]} 19. Bc4 {[%emt 0:03:22]} Be7 {[%emt 0:06:04]} 20. Bxd5 {[%emt 0:01:17]} Rxd5 {[%emt 0:00:07]} 21. Nc5 {[%emt 0:04:23]} Bxc5 {[%emt 0:02:09]} 22. Rxc5 {[%emt 0:00:50]} Red8 {[%emt 0:01:33]} 23. Rfc1 {[%emt 0:02:26]} Rxc5 {[%emt 0:01:07]} 24. dxc5 {[%emt 0:00:26]} g5 {[%emt 0:00:25]} 25. Rc2 {[%emt 0:04:09]} Kg7 {[%emt 0:00:56]} 26. Rd2 {[%emt 0:02:08]} Rxd2 {[%emt 0:00:31]} 27. Bxd2 {[%emt 0:00:05]} Kf6 {[%emt 0:00:10]} 28. f4 {[%emt 0:00:19]} Nd8 {[%emt 0:01:03]} 29. g4 {[%emt 0:02:12]} Ne6 {[%emt 0:00:27]} 30. Bc3+ {[%emt 0:00:13]} Ke7 {[%emt 0:00:06]} 31. fxg5 {[%emt 0:01:04]} hxg5 {[%emt 0:00:48]} 32. b4 {[%emt 0:01:21]} Nf4 {[%emt 0:00:37]} 33. Kh2 {[%emt 0:00:33]} Ke6 {[%emt 0:00:44]} 34. Bd2 {[%emt 0:00:46]} Ke5 {[%emt 0:00:17]} 35. Kg3 {[%emt 0:00:21]} Ne6 {[%emt 0:00:41]} 36. Kf3 {[%emt 0:01:47]} Nd4+ {[%emt 0:00:24]} 37. Kg3 {[%emt 0:00:28]} Ne6 {[%emt 0:00:34]} 38. Kf3 {[%emt 0:00:43]} Nd4+ {[%emt 0:00:30]} 39. Kg3 {[%emt 0:01:07]} Ne6 {[%emt 0:00:17]} 40. Kf3 {[%emt 0:00:00]} Nd4+ {[%emt 0:00:00]} 1/2-1/2

[Event "SRB-chW Semifinal 2021"]
[Site "Paracin"]
[Date "2021.03.18"]
[Round "4.1"]
[White "Chelushkina, Irina"]
[Black "Manakova, Maria"]
[Result "0-1"]
[ECO "B30"]
[WhiteElo "2203"]
[BlackElo "2271"]
[Annotator "NA"]
[PlyCount "70"]
[EventDate "2021.03.16"]
[EventType "swiss"]
[EventCountry "SRB"]
[SourceTitle "playchess.com"]
[Source "ChessBase"]
[SourceQuality "1"]
[TimeControl "40/5400+30:1800+30"]

1. e4 {[%emt 0:00:00]} c5 {[%emt 0:00:00]} 2. Nf3 {[%emt 0:00:00]} Nc6 {[%emt 0:00:31]} 3. d3 {[%emt 0:00:21]} g6 {[%emt 0:00:50]} 4. Be2 {[%emt 0:00:17]} Bg7 {[%emt 0:00:04]} 5. O-O {[%emt 0:00:04]} d6 {[%emt 0:02:11]} 6. c3 {[%emt 0:01:55]} e5 {[%emt 0:09:58]} 7. a3 {[%emt 0:02:00]} a5 {[%emt 0:01:37]} 8. a4 {[%emt 0:00:06]} Nf6 {[%emt 0:02:29]} 9. Na3 {[%emt 0:00:05]} h6 {[%emt 0:05:58]} 10. Nb5 {[%emt 0:03:16]} O-O {[%emt 0:01:04]} 11. Nd2 {[%emt 0:01:57]} d5 {[%emt 0:03:45]} 12. exd5 {[%emt 0:05:19]} Nxd5 {[%emt 0:00:21]} 13. Nc4 {[%emt 0:00:06]} Be6 {[%emt 0:01:30]} 14. Bf3 {[%emt 0:02:18]} Kh7 {[%emt 0:13:30]} 15. Re1 {[%emt 0:05:32]} f5 {[%emt 0:03:49]} 16. Qe2 {[%emt 0:11:22]} Bg8 {[%emt 0:04:05]} 17. g3 {[%emt 0:02:03]} Rb8 {[%emt 0:01:04]} 18. Ne3 {[%emt 0:06:03]} Nde7 {[%emt 0:02:57]} 19. Nf1 {[%emt 0:00:50]} Qd7 {[%emt 0:01:37]} 20. Qc2 {[%emt 0:10:17]} Rbd8 {[%emt 0:01:07]} 21. Be2 {[%emt 0:01:08]} f4 {[%emt 0:01:53]} 22. Nd2 {[%emt 0:01:31]} b6 {[%emt 0:10:30]} 23. Bf1 {[%emt 0:01:44]} Be6 {[%emt 0:01:09]} 24. f3 {[%emt 0:01:43]} fxg3 {[%emt 0:01:32]} 25. hxg3 {[%emt 0:00:06]} Bh3 {[%emt 0:00:17]} 26. Be2 {[%emt 0:00:24]} Bf5 {[%emt 0:08:13]} 27. Ne4 {[%emt 0:12:16]} Bxe4 {[%emt 0:00:18]} 28. dxe4 {[%emt 0:00:01]} Qh3 {[%emt 0:00:09]} 29. Be3 {[%emt 0:00:52]} Qxg3+ {[%emt 0:00:48]} 30. Kf1 {[%emt 0:00:00]} Qh3+ {[%emt 0:04:28]} 31. Kg1 {[%emt 0:00:27]} Qg3+ {[%emt 0:00:49]} 32. Kf1 {[%emt 0:00:17]} g5 {[%emt 0:01:25]} 33. Bd1 {[%emt 0:04:16]} Rxd1 {[%emt 0:10:10]} 34. Rexd1 {[%emt 0:00:04]} Qxf3+ {[%emt 0:00:41]} 35. Bf2 {[%emt 0:00:12]} Qh1+ {[%emt 0:00:30]} 0-1

[Event "SRB-chW Semifinal 2021"]
[Site "Paracin"]
[Date "2021.03.18"]
[Round "4.2"]
[White "Srdanovic, Jovana"]
[Black "Gajcin, Marina"]
[Result "1/2-1/2"]
[ECO "D03"]
[WhiteElo "2109"]
[BlackElo "2227"]
[Annotator "NA"]
[PlyCount "49"]
[EventDate "2021.03.16"]
[EventType "swiss"]
[EventCountry "SRB"]
[SourceTitle "playchess.com"]
[Source "ChessBase"]
[SourceQuality "1"]
[TimeControl "40/5400+30:1800+30"]

1. d4 {[%emt 0:00:07]} Nf6 {[%emt 0:00:00]} 2. Bg5 {[%emt 0:00:19]} d5 {[%emt 0:09:55]} 3. Nd2 {[%emt 0:00:13]} Nbd7 {[%emt 0:02:31]} 4. e3 {[%emt 0:00:18]} g6 {[%emt 0:00:34]} 5. Ngf3 {[%emt 0:00:14]} Bg7 {[%emt 0:00:05]} 6. Be2 {[%emt 0:00:09]} O-O {[%emt 0:02:24]} 7. O-O {[%emt 0:00:14]} c5 {[%emt 0:12:25]} 8. c3 {[%emt 0:03:44]} b6 {[%emt 0:02:29]} 9. a4 {[%emt 0:02:25]} Bb7 {[%emt 0:11:34]} 10. a5 {[%emt 0:13:48]} Bc6 {[%emt 0:11:21]} 11. Qb3 {[%emt 0:15:10]} c4 {[%emt 0:08:00]} 12. Qa3 {[%emt 0:01:17]} Re8 {[%emt 0:02:00]} 13. Ne1 {[%emt 0:05:36]} e5 {[%emt 0:13:06]} 14. Nc2 {[%emt 0:10:04]} Bf8 {[%emt 0:04:00]} 15. Qa2 {[%emt 0:01:05]} Qc7 {[%emt 0:01:40]} 16. dxe5 {[%emt 0:01:16]} Qxe5 {[%emt 0:00:36]} 17. Bf4 {[%emt 0:01:11]} Qe7 {[%emt 0:00:08]} 18. Nb4 {[%emt 0:00:42]} Bb5 {[%emt 0:01:57]} 19. Nf3 {[%emt 0:09:56]} a6 {[%emt 0:00:54]} 20. Nd4 {[%emt 0:01:20]} Qc5 {[%emt 0:00:54]} 21. Rfd1 {[%emt 0:02:12]} bxa5 {[%emt 0:00:59]} 22. Qxa5 {[%emt 0:00:09]} Nb6 {[%emt 0:00:20]} 23. Bf3 {[%emt 0:05:09]} Ne4 {[%emt 0:00:03]} 24. Nbc2 {[%emt 0:02:18]} Be7 {[%emt 0:03:12]} 25. Qa2 {[%emt 0:05:36]} 1/2-1/2